Cogmind - Beta 13 @@@ ROGUE MODE // 2024.04.02 @ 23:27:09 Player: lazy_engineer Result: Destroyed by G-34 Mercenary with Small Laser Performance ------------- Evolutions (0) 0 Regions Visited (1) 200 Robots Destroyed (34) 170 Value Destroyed (693) 693 Prototype IDs (0) 0 Alien Tech Used (0) 0 Bonus (0) 0 TOTAL SCORE: 1063 Bonus ------- None Cogmind --------- Core Integrity 0/250 Matter 300/300 Energy 250/250 System Corruption 1% Temperature Cool (6) Movement Walking (120) Location -10/Materials Parts ------- > --- POWER (1) -------- Ion Engine > --- PROPULSION (2) --- Aluminum Leg Aluminum Leg > --- UTILITY (2) ------ Small Storage Unit Hacking Suite > --- WEAPON (2) ------- Light Assault Rifle Mining Claw > --- INVENTORY (8) ---- Structural Scanner Signal Interpreter Terrain Scanner Improved Terrain Scanner Terrain Scan Processor Hacking Suite Grenade Launcher Datajack Peak State ------------ > --- POWER ------------ Ion Engine > --- PROPULSION ------- Aluminum Leg Aluminum Leg > --- UTILITY ---------- Small Storage Unit Hacking Suite > --- WEAPON ----------- Small Laser Light Assault Rifle > --- INVENTORY -------- Small Matter Pod Signal Interpreter Terrain Scanner Improved Terrain Scanner Hacking Suite Grenade Launcher Datajack Mining Laser [Rating: 10] Favorites ----------- Power Ion Engine Engine Ion Engine Propulsion Aluminum Leg Treads Light Treads Leg Aluminum Leg Wheel Wheel Utility Small Storage Unit Storage Small Storage Unit Hackware Hacking Suite Weapon Light Assault Rifle Energy Gun Small Laser Ballistic Gun Light Assault Rifle Special Weapon Mining Laser Slashing Weapon Mining Claw Build | -11 -10 ------- Run | Yrd Mat Slots Evolved . | . . Power . | . . Propulsion . | . . Utility . | . . Weapon . | . . Parts Attached 21 | 7 14 Power 3 | 1 2 Engine 3 | 1 2 Core . | . . Reactor . | . . Propulsion 6 | 2 4 Treads 1 | 1 . Leg 4 | . 4 Wheel 1 | 1 . Hover . | . . Flight . | . . Utility 3 | 2 1 Device . | . . Storage 2 | 2 . Processor . | . . Hackware 1 | . 1 Protection . | . . Artifact . | . . Weapon 9 | 2 7 Energy Gun 4 | 1 3 Energy Cannon . | . . Ballistic Gun 2 | 1 1 Ballistic Cannon . | . . Launcher . | . . Special Weapon 2 | . 2 Impact Weapon . | . . Slashing Weapon 1 | . 1 Piercing Weapon . | . . Special Melee Weapon . | . . Unidentified Prototypes . | . . Parts Lost 7 | . 7 Power 1 | . 1 Propulsion 4 | . 4 Utility . | . . Weapon 2 | . 2 Highest Loss Streak 3 | . 3 To Critical Strikes 1 | . 1 Average Slot Usage (%) 90 | . 90 Engine 9 | . 9 Treads 2 | . 2 Leg 21 | . 21 Wheel 1 | . 1 Storage 14 | . 14 Hackware 13 | . 13 Energy Gun 7 | . 7 Ballistic Gun 14 | . 14 Special Weapon 3 | . 3 Slashing Weapon 1 | . 1 Naked Turns . | . . Heaviest Build 13 | 13 13 Greatest Support 20 | 10 20 Greatest Overweight (x) 3 | 1 3 Average Overweight (x) . | . . Largest Inventory Capacity 8 | 8 8 Average Capacity 7 | 7 8 Most Carried 8 | 5 8 Average Carried 6 | 2 7 Final Capacity 8 | 8 8 Final Carried 8 | 4 8 Class Distribution -------------------- 65% | Mutant 34% | Scavenger-Mutant Dominant Class ---------------- Mutant | -10/Materials Resources | -11 -10 ----------- Run | Yrd Mat Matter Collected 565 | 334 231 Remotely . | . . Salvage Created 1210 | 260 950 Parts 73 | 17 56 Haulers Intercepted . | . . Recyclers Shooed 2 | . 2 Parts Field Recycled . | . . Retrieved Matter . | . . Parts Self-Destructed . | . . Prevented . | . . Kills | -11 -10 ------- Run | Yrd Mat Combat Hostiles Destroyed 18 | . 18 Melee 3 | . 3 Guns 15 | . 15 Classes Destroyed 8 | 3 5 Worker 2 | 2 . Builder 1 | . 1 Tunneler 5 | 5 . Recycler 4 | 1 3 Mechanic 1 | . 1 Operator 3 | . 3 Swarmer 3 | . 3 Grunt 15 | . 15 Best Kill Streak 7 | 4 7 Combat Bots Only 7 | . 7 Max Kills in Single Turn 1 | 1 1 Gunslinging . | . . Exploded . | . . Melee 1 | . 1 Uniques/NPCs Destroyed . | . . Combat | -11 -10 -------- Run | Yrd Mat Hostile Shots Fired 117 | . 117 Missed 34 | . 34 Damage Taken 974 | . 974 Core 257 | . 257 Absorbed by Shields . | . . Core Remaining (%) 100 | 100 . Volleys Fired 132 | 20 112 Largest 2 | 2 2 Hottest 120 | 60 120 Shots Fired 222 | 40 182 Gun 214 | 40 174 Cannon . | . . Launcher . | . . Special 8 | . 8 Kinetic 135 | 20 115 Thermal 87 | 20 67 Explosive . | . . Electromagnetic . | . . Robot Hit Streak 13 | 4 13 Robot Miss Streak 6 | 4 6 Penetration Max . | . . Secondary Targets 4 | . 4 Max Gunslinging Chain 1 | . 1 Shots Hit Robots 140 | 17 123 Core Hits 69 | 12 57 Critical Kills . | . . Critical Parts Destroyed . | . . Critical Strikes . | . . Melee Attacks 5 | . 5 Impact . | . . Slashing 5 | . 5 Piercing . | . . Sneak Attacks . | . . Combat Hostiles . | . . Follow-up Attacks . | . . Damage Inflicted 1410 | 161 1249 Guns 1265 | 161 1104 Cannons . | . . Explosions . | . . Melee 97 | . 97 Ramming . | . . Kinetic 688 | 62 626 Thermal 625 | 99 526 Explosive . | . . Electromagnetic . | . . Impact . | . . Slashing 97 | . 97 Piercing . | . . Highest Corruption 1 | . 1 Average Corruption 1 | . 1 Corruption Purged . | . . Corruption Blocked . | . . Effects 3 | . 3 Matter Fused 1 | . 1 Data Loss (minor) 1 | . 1 Misfires 1 | . 1 Overload Shots . | . . Overflow Damage . | . . Projectiles . | . . Explosions . | . . Melee . | . . Knockbacks . | . . Impact . | . . Kinetic . | . . Secondary . | . . Self-Inflicted Damage . | . . Shots . | . . Rammed . | . . Targets Rammed . | . . Kicked . | . . Crushed . | . . Highest Temperature 265 | 40 265 Average Temperature 51 | 21 58 Received Heat Transfer 525 | . 525 Effects 2 | . 2 Interference 2 | . 2 Siege Activations . | . . Robots Corrupted . | . . Combat Hostiles . | . . Parts Fried . | . . Impact Corruptions . | . . Robots Melted . | . . Combat Hostiles . | . . Parts Melted . | . . Heat Transferred 1400 | 225 1175 Parts Sabotaged . | . . Parts Stolen . | . . Parts Stripped . | . . Power Chain Reactions . | . . Alert | -11 -10 ------- Run | Yrd Mat Peak Influence 338 | 40 338 Initial 26 | . 26 Average 167 | 22 196 Maximum Alert Level 1 | . 1 Low Security (%) 58 | 100 50 Level 1 41 | . 49 Level 2 . | . . Level 3 . | . . Level 4 . | . . Level 5 . | . . High Security . | . . Max Security . | . . Squads Dispatched 9 | . 9 Investigation 6 | . 6 Extermination . | . . Reinforcement 3 | . 3 Assault . | . . Garrison . | . . Intercept . | . . Searches Triggered . | . . Construction Impeded . | . . Haulers Reinforced . | . . Active Scanning Responses . | . . Cargo Convoy Interrupts . | . . Stealth | -11 -10 --------- Run | Yrd Mat Distress Signals . | . . Communications Jammed . | . . Distress Signals . | . . Times Spotted 42 | . 42 Peak Tracking Total 6 | . 6 Tactical Retreats 3 | . 3 Traps | -11 -10 ------- Run | Yrd Mat Traps Triggered 3 | . 3 Indirectly . | . . Trap Hack Attempts . | . . Triggered . | . . Disarmed . | . . Reprogrammed . | . . Reused . | . . Traps Extracted . | . . Installed . | . . Triggered . | . . Machines | -11 -10 ---------- Run | Yrd Mat Machines Disabled . | . . Max in Single Turn . | . . Machines Repaired . | . . Machines Dismantled . | . . Machines Sabotaged . | . . Overloaded Fab Kills . | . . Hacking | -11 -10 --------- Run | Yrd Mat Machines Accessed 4 | . 4 Terminals 3 | . 3 Fabricators . | . . Repair Stations . | . . Recycling Units 1 | . 1 Scanalyzers . | . . Garrison Access . | . . Total Hacks 16 | . 16 Successful 11 | . 11 Failed 5 | . 5 Catastrophic . | . . Database Lockouts . | . . Manual 12 | . 12 Terminals 15 | . 15 Fabricators . | . . Repair Stations . | . . Recycling Units 1 | . 1 Scanalyzers . | . . Garrison Access . | . . Terminal Hacks 4 | . 4 Record 1 | . 1 Robot Analysis 1 | . 1 Zone Layout 2 | . 2 Fabricator Hacks . | . . Repair Station Hacks . | . . Recycling Unit Hacks . | . . Scanalyzer . | . . Garrison Access Hacks . | . . Unauthorized Hacks 7 | . 7 Terminals 6 | . 6 Track 3 | . 3 Botnet 3 | . 3 Fabricators . | . . Repair Stations . | . . Recycling Units 1 | . 1 Tunnel 1 | . 1 Scanalyzers . | . . Garrison Access . | . . Data Cores Recovered . | . . Used . | . . Hacking Detections 3 | . 3 Full Trace Events 3 | . 3 Feedback Events . | . . Feedback Blocked . | . . Robot Schematics Acquired . | . . Robots Built . | . . Authchips . | . . Time . | . . Total Robot Build Rating . | . . Part Schematics Acquired . | . . Parts Built . | . . Authchips . | . . Time . | . . Total Part Build Rating . | . . Parts Repaired . | . . Time . | . . Parts Recycled . | . . Recycled Matter . | . . Retrieved Matter . | . . Retrieved Components . | . . Parts Scanalyzed . | . . Part Schematics Acquired . | . . Parts Damaged . | . . Bothacking | -11 -10 ------------ Run | Yrd Mat Used RIF Installer . | . . Robots Hacked . | . . Non-combat . | . . Combat . | . . Robot Hacks Applied . | . . Relay Couplers Released . | . . Fabnet Peak Effective % . | . . Robots Rewired . | . . Allies Hacked . | . . Hacks Repelled . | . . Allies | -11 -10 -------- Run | Yrd Mat Total Allies . | . . Largest Group . | . . Highest-Rated Group . | . . Highest-Rated Ally . | . . Total Orders . | . . Ally Attacks . | . . Total Damage . | . . Kills . | . . Allies Corrupted . | . . Allies Melted . | . . Intel | -11 -10 ------- Run | Yrd Mat Robot Analysis Total 1 | . 1 Derelict Logs Recovered . | . . Drone Launches . | . . Drone Recoveries . | . . Exploration | -11 -10 ------------- Run | Yrd Mat Turns Passed 1277 | 215 1062 Spaces Moved 690 | 151 539 Core 8 | 5 3 Treads . | . . Legs 449 | . 449 Wheels 233 | 146 87 Hover . | . . Flight . | . . Fastest Speed 50 | 50 95 Average Speed 116 | 92 122 Slowest Speed 200 | 95 200 Overloaded Moves . | . . Propulsion Burnouts . | . . Robots Hopped . | . . Cave-ins Triggered . | . . Exploration Rate (%) 32 | 4 61 Regions Visited 1 Branch Regions . Pre-discovered Areas 1 | . 1 Known Exits Taken . | . . Unknown Exits Taken 1 | 1 . Scrap Searched . | . . Spaces Dug 3 | . 3 Terrain Destroyed 3 | . 3 Melee . | . . Projectile 3 | . 3 AOE . | . . Terrain Rammed . | . . Walls Destroyed . | . . Machines Disabled . | . . Actions | -11 -10 --------- Run | Yrd Mat Total 944 | 190 754 Wait 69 | 2 67 Move 689 | 150 539 Hop . | . . Pick Up 22 | 11 11 Fast Attach 5 | . 5 Attach 10 | 7 3 Detach . | . . Swap 6 | . 6 Drop 6 | . 6 Fire 132 | 20 112 Melee 5 | . 5 Ram . | . . Kick . | . . Crush . | . . Escape Stasis . | . . Rewire . | . . Trap . | . . Miscellaneous . | . . Route ------- -11/Scrapyard -10/Materials (discovered 1 exit: [*Mat]) History --------- Turn | Location | Event 8 | -11/Scrapyard | Discovered new exit (range 16) 216 | -11/Scrapyard | Entered Materials 309 | -10/Materials | Build established: Mutant 402 | -10/Materials | Destroyed 7 combat bots 615 | -10/Materials | Core integrity fell below 50% 724 | -10/Materials | Discovered new exit (range 4) 831 | -10/Materials | Core integrity fell below 20% 865 | -10/Materials | Lost 3 parts (2n1w) 1160 | -10/Materials | Build established: Scavenger-Mutant 1278 | -10/Materials | Destroyed by G-34 Mercenary with Small Laser Last Messages --------------- 01104_ M-13 Machinist destroyed. 01120_ Acquired 1 matter. 01134_ Dropped Mining Laser. 01137_ System corrupted: Matter fused (-5). 01139_ Acquired Mining Claw. 01156_ Acquired 15 matter. 01190_ System corrupted: Component data lost. 01194_ Connecting with Recycling Unit... >>Force(Tunnel) DISCOVERED[-7/Storage] 01194_ ALERT: Suspicious activity at Recycling Unit M002. Dispatching Investigation squad. 01206_ System corrupted: FCS attempts to trigger Lgt. Assault Rifle. 01206_ System corrupted: Lgt. Assault Rifle misfires. 01234_ Connecting with Terminal... 01234_ ALERT: Suspicious activity at Terminal M005. Dispatching Investigation squad. 01246_ G-34 Mercenary destroyed. 01262_ Acquired 2 matter. 01274_ G-34 Mercenary destroyed. Map ----- +----------------------------------------------------+ | ???????# #??????# ! # #???# < #???? | | ?????### ###????# #####+#####???# #???? | | ?????# #????# = %% #?# ####### #???? | | ?????# ##########+#### T" #???? | | ?????# T % % " ##### | | ?????# ########## #### | | ?????# #????????# #??# ####### | | ############????????# #??##########??# | | # """ """ ########## #???????# # ##### | | # """ """ ##% # #???????# + #???? | | # """ """ ## # ######### # ##### | | # ## """""%# # ! ## "T"??# # | | # ## """"" + # //|## "????# # | | # ## """"" # # //|#???????# #! | | # #"######## +| ||#???????# # | | ?#####+####### #o# #???????# # " " | | ???# #???# T # # * #???????# + "Y" | | ???# #???# + ########???????# # """ | | ???# #???# # #??????????????# # | | ???# #???# # #########?????## %##### | | ???# #???# # ####### #??? | | ???### ###???######## ^ #??? | | ?????# #????????????#% #??? | | ?????# ############## g % #### | | ?????# %%%%g! """ ## | | #####################@#### """ ### ## | | # #?????????????# #??# """ #?# #? | | # #?????????????# #??# #?# #? | | # """ ############### #??# #?# ## | | # """ + =**%=g! *!%% #??# """ [*#?# | | # """ # ##########+####??# """ [*#?# ##### | | # #%#??????# T=! #??# """ #?# #???? | | # """ # ######## [= #??# ####+###### | | # """ # #! """ #??# # # | | # """ + # """ #??# """ # # | | # # """ # """ #??# """ # # | | # ## """ # #??# """ # """" # | | # ## """ ########??# /% """" # | | ######## #?# #?????# =# """" # | | # ## ###?####### """ %# # | | # ## # ## """ # # | | # """ ## " # ## """ ##+######## | | # """ ## T # ## ## #??????? | | # """ # " # """ ## ## #??????? | | # + + """"" ## """ ## #??????? | | # """ # # """"" ## """ ?# #??????? | | # """ ### # """"" ## """ ?# #??????? | | # """ #?# # """ ##???? ?? ???????? | | # #?# # ##??? ?? ???????? | | # #?# ###########???? ?? ???????? | +----------------------------------------------------+ Best States ------------- Heat Dissipation 25 Energy Generation 10 Energy Capacity 250 Matter Stores 350 Matter Capacity 350 Sight Range 16 Terrain Scan Density 10 Evasion (%) 55 Recoil Reduction 1 Offensive Hacking 10 Item Schematics ----------------- None Robot Schematics ------------------ None Fabricated ------------ Nothing Alien Tech Used ----------------- None Achievements -------------- None Challenges ------------ None Game ------ Seed HellfireDiametricMallet Manual? 0 Play Time 00:15:12 Cumulative 17.4 hours Start 2024.04.02 @ 23:12:05 End 2024.04.02 @ 23:27:09 Sessions 1 Manual Loads 0 Difficulty Rogue Special Mode None Game No. 34 Rogue 34 Adventurer 0 Explorer 0 Win Type - Total 0 Types 0/0/0/0/0/0/0/0/0 Lore% 16 Gallery% 19 Achievement% 18 Wizard Run 0 Options --------- Layout 0 ASCII 0 Keyboard 0 Movement Mouse Keybinds 0 Fullscreen 1 Font 24/Smallcaps Map View 76x50 Zoom Use 0% Tactical HUD 1 Map Filters NONE Filters NONE Steam 1 RUN: 2f41a788-b82a-498f-a2da-9e31cba031d2